bitfinex-derivatives/quotes_BNBF0:USTF0_20250715
["timestamp","ask_amount","ask_price","bid_price","bid_amount"]
[1752588073711,0.97786186,686.11,685.4,0.97450455]
[1752588073908,0.97786186,686.11,685.23,0.25380988]
[1752588073909,0.97786186,686.14,685.43,0.97450455]
[1752588074113,0.97786186,686.16,685.45,0.97450455]
[1752588074914,0.97786186,686.18,685.44,0.97450455]
[1752588076010,0.97786186,686.18,685.23,0.25380988]
[1752588076011,0.97786186,686.23,685.48,0.97450455]
[1752588077212,0.97786186,686.23,685.47,0.97450455]
[1752588077516,0.97786186,686.24,685.48,0.97450455]
[1752588078615,0.97786186,686.24,685.32,1.2935442]
[1752588078815,0.42522541,686.28,685.23,0.25380988]
[1752588079016,0.25372568,686.29,685.23,0.25380988]
[1752588079822,0.97995794,686.27,685.48,0.97622209]
[1752588080320,0.97995794,686.27,685.47,0.97622209]
[1752588080723,0.97995794,686.25,685.45,0.97622209]
[1752588082225,0.97995794,686.26,685.44,0.97622209]
[1752588082432,0.97995794,686.25,685.45,0.97622209]
[1752588083329,0.97995794,686.22,685.47,0.97622209]
[1752588083628,0.97995794,686.24,685.48,0.97622209]
[1752588084231,0.97995794,686.23,685.48,0.97622209]
[1752588084529,0.97995794,686.24,685.48,0.97622209]
[1752588085630,0.4250363,686.28,685.43,0.97622209]
[1752588085833,0.67876198,686.29,685.43,0.97622209]
[1752588086034,0.97995794,686.28,685.42,0.97622209]
[1752588086236,0.97995794,686.26,685.41,0.97622209]
[1752588086430,0.97995794,686.26,685.4,0.97622209]
[1752588086635,0.97995794,686.23,685.37,0.97622209]
[1752588086931,0.97995794,686.24,685.37,0.97622209]
[1752588087132,3.2665264,687.33,685.23,0.25380988]
[1752588087133,0.97995794,686.19,685.4,0.97622209]
[1752588087333,0.97995794,686.23,685.45,0.97622209]
[1752588087530,0.97995794,686.26,685.47,0.97622209]
[1752588087735,1.40486144,686.27,685.47,0.97622209]
[1752588087935,0.4249035,686.27,685.53,0.97622209]
[1752588088931,1.40484677,686.31,685.54,0.97622209]
[1752588089132,0.42488883,686.3,685.54,0.97622209]
[1752588089333,0.42488883,686.3,685.53,0.97622209]
[1752588089732,0.97995794,686.31,685.53,0.97622209]
[1752588089933,0.97995794,686.33,685.52,0.97622209]
[1752588090336,0.97995794,686.34,685.51,0.97622209]
[1752588090533,0.97995794,686.37,685.49,0.97622209]
[1752588091337,0.97995794,686.37,685.31,1.3016294]
[1752588091338,0.97995794,686.37,685.48,0.97622209]
[1752588091733,0.97995794,686.36,685.48,0.97622209]
[1752588092331,0.97995794,686.37,685.48,0.97622209]
[1752588092536,0.97995794,686.37,685.47,0.97622209]
[1752588092737,0.42488883,686.43,685.23,0.25380988]
[1752588092738,0.97995794,686.35,685.46,0.97622209]
[1752588093034,0.42488883,686.43,685.37,0.97622209]
[1752588093237,0.25366835,686.44,685.23,0.25380988]
[1752588093238,0.25366835,686.44,685.36,0.97622209]
[1752588094737,0.25366835,686.44,685.38,0.97622209]
[1752588094935,0.25366835,686.44,685.37,0.97622209]
[1752588095339,0.25366835,686.44,685.36,0.97622209]
[1752588096439,0.25366835,686.44,685.4,0.97622209]
[1752588097340,0.25366835,686.44,685.39,0.97622209]
[1752588097837,0.42450078,686.57,685.41,0.97622209]
[1752588098139,0.25361566,686.54,685.41,0.97622209]
[1752588098535,0.25361566,686.54,685.43,0.97622209]
[1752588098739,0.25361566,686.54,685.46,0.97622209]
[1752588098937,1.2335736,686.54,685.55,0.97622209]
[1752588099136,0.25361566,686.54,685.66,0.97622209]
[1752588099940,0.25361566,686.54,685.64,0.97622209]
[1752588100341,0.25361566,686.54,685.62,0.97622209]
[1752588101238,0.25361566,686.54,685.41,1.3016294]
[1752588101239,0.25361566,686.54,685.6,0.97622209]
[1752588102340,0.25361566,686.54,685.59,0.97622209]
[1752588103239,0.25361566,686.54,685.23,0.25380988]
[1752588103240,0.25361566,686.54,685.57,0.97622209]
[1752588103737,0.25361566,686.54,685.23,0.25380988]
[1752588103738,0.25361566,686.54,685.59,0.97622209]
[1752588103938,0.25361566,686.54,685.6,0.97622209]
[1752588104140,0.25361566,686.54,685.59,0.97622209]
[1752588105046,0.25361566,686.54,685.6,0.97622209]
[1752588105244,0.25361566,686.54,685.23,0.25380988]
[1752588105245,0.25361566,686.54,685.59,0.97622209]
[1752588106247,0.25361566,686.54,685.58,0.97622209]
[1752588106448,0.25361566,686.54,685.62,0.97622209]
[1752588107249,0.25361566,686.54,685.63,0.97622209]
[1752588107749,0.25361566,686.54,685.61,0.97622209]
[1752588108049,0.25361566,686.54,685.59,0.97622209]
[1752588108245,0.25361566,686.54,685.58,0.97622209]
[1752588108450,0.25361566,686.54,685.59,0.97622209]
[1752588108753,0.25361566,686.54,685.58,0.97622209]
[1752588110048,0.25361566,686.54,685.51,0.97622209]
[1752588111150,0.25361566,686.54,685.46,0.97622209]
[1752588112554,0.25361566,686.54,685.43,0.97622209]
[1752588112751,0.25361566,686.54,685.42,0.97622209]
[1752588113354,0.25361566,686.54,685.43,0.97622209]
[1752588113850,0.25361566,686.54,685.48,0.97622209]
[1752588114055,0.25361566,686.54,685.51,0.97622209]
[1752588114356,0.25361566,686.54,685.54,0.97622209]
[1752588114952,0.25361566,686.54,685.53,0.97622209]
[1752588116456,0.25361566,686.54,685.54,0.97622209]
[1752588118456,0.25361566,686.54,685.55,0.97622209]
[1752588118957,0.25361566,686.54,685.56,0.97622209]
[1752588119257,0.25361566,686.54,685.57,0.97622209]
[1752588120155,0.25361566,686.54,685.59,0.97622209]
[1752588121352,0.25361566,686.54,685.23,0.25380988]
[1752588121353,0.25361566,686.54,685.58,0.97622209]
[1752588121754,0.25361566,686.54,685.5,0.97622209]
[1752588121954,0.25361566,686.54,685.23,0.25380988]
[1752588121955,0.25361566,686.54,685.52,0.96989225]
[1752588122257,0.25361566,686.54,685.38,1.3016294]
[1752588122258,0.25361566,686.54,685.53,0.96989225]
[1752588123257,0.25361566,686.54,685.56,0.96989225]
[1752588124255,0.25361566,686.54,685.57,0.96989225]
[1752588125356,0.25361566,686.54,685.58,0.96989225]
[1752588125662,0.67758436,686.54,685.58,0.96989225]
[1752588126161,1.65262855,686.54,685.59,0.96989225]
[1752588126357,1.39901289,686.53,685.6,0.96989225]
[1752588126762,0.4239687,686.53,685.62,0.96989225]
[1752588127060,0.4239687,686.53,685.37,1.9524441]
[1752588127061,0.25361566,686.54,685.64,0.96989225]
[1752588127260,0.25361566,686.54,685.65,0.96989225]
[1752588128164,0.25361566,686.54,685.66,0.96989225]
[1752588129465,0.25361566,686.54,685.68,0.96989225]
[1752588129866,0.25361566,686.54,685.65,0.96989225]
[1752588130160,0.67605165,686.54,685.63,0.96989225]
[1752588130365,0.25361566,686.54,685.63,0.96989225]
[1752588131161,0.25361566,686.54,685.59,0.96989225]
[1752588131965,0.67605165,686.54,685.59,0.96989225]
[1752588132262,1.65109584,686.54,685.6,0.96989225]
[1752588132463,0.42243599,686.53,685.61,0.96989225]
[1752588132660,0.42243599,686.55,685.65,0.96989225]
[1752588132866,0.97504419,686.56,685.69,0.96989225]
[1752588133166,0.42243599,686.6,685.8,0.96989225]
[1752588133366,0.42243599,686.65,685.8,0.96989225]
[1752588134067,0.42243599,686.65,685.81,0.96989225]
[1752588134264,0.25357778,686.66,685.81,0.96989225]
[1752588134671,0.25357778,686.66,685.82,0.96989225]
[1752588135165,0.42243599,686.68,685.81,0.96989225]
[1752588135364,1.39748018,686.68,685.82,0.96989225]
[1752588135568,0.42243599,686.67,685.82,0.96989225]
[1752588135765,0.97504419,686.68,685.82,0.96989225]
[1752588135965,0.97504419,686.74,685.88,0.96989225]
[1752588136265,0.97504419,686.74,685.87,0.96989225]
[1752588136464,0.97504419,686.72,685.86,0.96989225]
[1752588137165,0.97504419,686.72,685.23,0.25380988]
[1752588137166,0.97504419,686.75,685.84,0.96989225]
[1752588137365,0.97504419,686.78,685.87,0.96989225]
[1752588138168,0.97504419,686.78,685.86,0.96989225]
[1752588138365,0.97504419,686.78,685.87,0.96989225]
[1752588139671,0.97504419,686.79,685.87,0.96989225]
[1752588139872,0.97504419,686.8,685.87,0.96989225]
[1752588140170,0.97504419,686.79,685.85,0.96989225]
[1752588140371,0.97504419,686.79,685.86,0.96989225]
[1752588140771,0.97504419,686.79,685.23,0.25380988]
[1752588140772,0.97504419,686.79,685.85,0.96989225]
[1752588141272,0.97504419,686.77,685.82,0.96989225]
[1752588141575,0.97504419,686.7,685.82,0.96989225]
[1752588141873,0.97504419,686.67,685.78,0.96989225]
[1752588142273,0.97504419,686.66,685.79,0.96989225]
[1752588143470,0.97504419,686.66,685.8,0.96989225]
[1752588144373,0.25351405,686.83,685.23,0.25380988]
[1752588144374,0.97504419,686.64,685.81,0.96989225]
[1752588144575,0.97504419,686.64,685.82,0.96989225]
[1752588144770,0.97504419,686.63,685.82,0.96989225]
[1752588145074,0.97504419,686.63,685.83,0.96989225]
[1752588145676,0.42255443,686.63,685.85,0.96989225]
[1752588145875,0.42255443,686.64,685.85,0.96989225]
[1752588146077,0.97504419,686.65,685.89,0.96989225]
[1752588146276,0.97504419,686.65,685.9,0.96989225]
[1752588147273,0.97504419,686.64,685.91,0.96989225]
[1752588149078,0.97504419,686.64,685.79,1.3016294]
[1752588149079,0.42281751,686.68,685.83,0.96989225]
[1752588149275,0.42281751,686.75,685.84,0.96989225]
[1752588149475,0.97504419,686.75,685.84,0.96989225]
[1752588150076,0.97504419,686.76,685.83,0.96989225]
[1752588151280,0.97504419,686.75,685.84,0.96989225]
[1752588152181,0.97504419,686.75,685.85,0.96989225]
[1752588152381,0.97504419,686.75,685.84,0.96989225]
[1752588152580,0.97504419,686.75,685.85,0.96989225]
[1752588152975,0.97504419,686.76,685.85,0.96989225]
[1752588153279,0.97504419,686.75,685.86,0.96989225]
[1752588154285,0.97504419,686.75,685.47,1.9524441]
[1752588154286,0.97504419,686.75,685.87,0.96989225]
[1752588155282,0.97504419,686.74,685.88,0.96989225]
[1752588156187,0.97504419,686.74,685.89,0.96989225]
[1752588156683,0.97504419,686.76,685.91,0.96989225]
[1752588157284,0.97504419,686.75,685.92,0.96989225]
[1752588158089,0.97504419,686.76,685.92,0.96989225]
[1752588158289,0.97504419,686.74,685.92,0.96989225]
[1752588158786,0.97504419,686.69,685.95,0.96989225]
[1752588159991,0.97504419,686.7,685.94,0.96989225]
[1752588160686,0.97504419,686.69,685.95,0.96989225]
[1752588161085,0.42334752,686.82,685.94,0.96989225]
[1752588161086,0.97504419,686.68,685.94,0.96989225]
[1752588161389,0.97504419,686.67,685.94,0.96989225]
[1752588161588,0.97504419,686.65,685.92,0.96989225]
[1752588163088,0.42334752,686.8,685.91,0.96989225]
[1752588163089,0.97504419,686.66,685.91,0.96989225]
[1752588163292,0.97504419,686.67,685.91,0.96989225]
[1752588165289,0.25351405,686.83,685.91,0.96989225]
[1752588165290,0.97504419,686.68,685.91,0.96989225]
[1752588165491,0.97504419,686.67,685.91,0.96989225]
[1752588165895,0.42422234,686.67,685.93,0.96989225]
[1752588166095,0.42422234,686.68,685.93,0.96989225]
[1752588166296,0.97504419,686.69,685.93,0.96989225]
[1752588167192,0.97504419,686.69,685.92,0.96989225]
[1752588168093,0.97504419,686.69,685.93,0.96989225]
[1752588169095,1.39926653,686.69,685.92,0.96989225]
[1752588169299,0.42422234,686.68,685.92,0.96989225]
[1752588169499,0.97504419,686.69,685.92,0.96989225]
[1752588169700,0.97504419,686.68,685.93,0.96989225]
[1752588170400,0.97504419,686.67,685.94,0.96989225]
[1752588170800,0.97504419,686.68,685.93,0.96989225]
[1752588171398,0.97504419,686.67,685.93,0.96989225]
[1752588171899,0.97504419,686.67,685.94,0.96989225]
[1752588172099,0.97504419,686.67,685.93,0.96989225]
[1752588172297,0.97504419,686.67,685.94,0.96989225]
[1752588173002,0.97504419,686.66,685.94,0.96989225]
[1752588173201,0.97504419,686.64,685.96,0.96989225]
[1752588177205,0.97504419,686.63,685.96,0.96989225]
[1752588179306,0.97504419,686.63,685.97,0.96989225]
[1752588179606,0.25351405,686.83,685.98,0.96989225]
[1752588179607,0.97504419,686.62,685.98,0.96989225]
[1752588180006,0.97504419,686.65,685.96,0.96989225]
[1752588180608,0.97504419,686.64,685.96,0.96989225]
[1752588182005,0.97504419,686.65,685.97,0.96989225]
[1752588182208,0.97504419,686.65,685.67,1.9524441]
[1752588182209,0.97504419,686.65,685.98,0.96989225]
[1752588182406,0.97504419,686.64,685.98,0.96989225]
[1752588182908,0.97504419,686.61,685.79,0.96989225]
[1752588183108,0.97504419,686.54,685.75,0.96989225]
[1752588183311,0.97504419,686.42,685.75,0.96989225]
[1752588184013,0.97504419,686.41,685.74,0.96989225]
[1752588184208,0.97504419,686.4,685.74,0.96989225]
[1752588184407,0.97504419,686.4,685.73,0.96989225]
[1752588185110,0.97504419,686.4,685.74,0.96989225]
[1752588185306,0.97504419,686.4,685.73,0.96989225]
[1752588185511,0.97504419,686.4,685.72,0.96989225]
[1752588185709,0.97504419,686.39,685.72,0.96989225]
[1752588185911,0.97504419,686.4,685.69,0.96989225]
[1752588186211,0.97504419,686.4,685.36,1.9524441]
[1752588186212,0.97504419,686.33,685.65,0.96989225]
[1752588186412,0.97504419,686.21,685.61,0.96989225]
[1752588186713,0.97504419,686.17,685.56,0.96989225]
[1752588187113,0.97504419,686.21,685.52,0.96989225]
[1752588187712,0.25351405,686.83,685.48,0.96989225]
[1752588187713,0.97504419,686.17,685.48,0.96989225]
[1752588188212,0.97504419,686.25,685.41,0.96989225]
[1752588188409,0.97504419,686.26,685.41,0.96989225]
[1752588189307,0.97504419,686.48,685.39,0.96989225]
[1752588189510,0.97504419,686.54,685.31,0.96989225]
[1752588190012,0.97504419,686.55,685.32,0.96989225]
[1752588190307,0.97504419,686.55,685.3,0.96989225]
[1752588190507,0.97504419,686.57,685.32,0.96989225]
[1752588191012,0.97504419,686.52,685.28,0.96989225]
[1752588191213,0.97504419,686.53,685.26,0.96989225]
[1752588191513,0.25351405,686.83,685.31,0.96989225]
[1752588191514,0.97504419,686.44,685.31,0.96989225]
[1752588191710,0.97504419,686.43,685.27,0.96989225]
[1752588191909,0.97504419,686.4,685.3,0.96989225]
[1752588192411,0.97504419,686.37,685.31,0.96989225]
[1752588192907,0.97504419,686.34,685.32,0.96989225]
[1752588193209,0.97504419,686.35,685.31,0.96989225]
[1752588194209,0.97504419,686.36,685.29,0.96989225]
[1752588194711,0.97504419,686.36,685.3,0.96989225]
[1752588195208,0.97504419,686.37,685.28,0.96989225]
[1752588195610,0.97504419,686.38,685.29,0.96989225]
[1752588196010,0.97504419,686.4,685.31,0.96989225]
[1752588196211,0.97504419,686.4,685.3,0.96989225]
[1752588196815,0.97504419,686.37,685.32,0.96989225]
[1752588197215,0.97504419,686.38,685.31,0.96989225]
[1752588197912,0.97504419,686.33,685.34,0.96989225]
[1752588198116,0.97504419,686.32,685.35,0.96989225]
[1752588198315,0.97504419,686.32,685.34,0.96989225]
[1752588198612,0.97504419,686.33,685.3,0.96989225]
[1752588198810,0.97504419,686.32,685.31,0.96989225]
[1752588199316,0.97504419,686.36,685.28,0.96989225]
[1752588199611,0.97504419,686.33,685.25,0.96989225]
[1752588199817,0.97504419,686.33,685.23,0.25380988]
[1752588199818,0.97504419,686.28,685.23,0.25380988]
[1752588200113,0.97504419,686.32,685.25,0.96989225]
[1752588200317,0.97504419,686.33,685.24,0.96989225]
[1752588200912,0.97504419,686.37,685.24,0.96989225]
[1752588201917,0.97504419,686.34,685.26,0.96989225]
[1752588202415,0.97504419,686.35,685.25,0.96989225]
[1752588203112,0.97504419,686.35,685.24,0.96989225]
[1752588203514,0.97504419,686.36,685.23,1.22370213]
[1752588204313,0.97504419,686.35,685.23,1.22370213]
[1752588205112,0.97504419,686.36,685.23,0.25380988]
[1752588205315,0.97504419,686.37,685.23,0.25380988]
[1752588206815,0.97504419,686.38,685.23,0.25380988]
[1752588207119,0.97504419,686.41,685.23,0.25380988]
[1752588208320,0.97504419,686.43,685.23,0.25380988]
[1752588209020,0.97504419,686.42,685.23,0.25380988]
[1752588209917,0.97504419,686.43,685.23,0.25380988]
[1752588210122,0.97504419,686.41,685.23,0.25380988]
[1752588210618,0.97504419,686.37,685.23,0.25380988]
[1752588210821,0.97504419,686.35,685.23,0.25380988]
[1752588211618,0.97504419,686.31,685.23,0.25380988]
[1752588212017,0.42318487,686.47,685.23,0.25380988]
[1752588212018,0.97504419,686.33,685.23,0.25380988]
[1752588212222,0.97504419,686.32,685.23,0.25380988]
[1752588212420,0.97504419,686.29,685.23,0.25380988]
[1752588213024,0.97504419,686.28,685.23,0.25380988]
[1752588213225,0.97504419,686.3,685.23,0.25380988]
[1752588213520,0.97504419,686.31,685.23,0.25380988]
[1752588215725,0.97504419,686.3,685.23,0.25380988]
[1752588216127,0.97504419,686.27,685.23,0.25380988]
[1752588216322,0.97504419,686.28,685.23,0.25380988]
[1752588217927,0.97504419,686.24,685.23,0.25380988]
[1752588219926,0.97504419,686.25,685.23,0.25380988]
[1752588220522,1.3066105,686.44,685.23,0.25380988]
[1752588220523,0.97504419,686.23,685.23,0.25380988]
[1752588220727,0.97504419,686.21,685.23,0.25380988]
[1752588221224,0.97504419,686.18,685.23,0.25380988]
[1752588221629,0.97504419,686.17,685.23,0.25380988]
[1752588221824,0.97504419,686.18,685.23,0.25380988]
[1752588222029,0.97504419,686.17,685.23,0.25380988]
[1752588222225,0.97504419,686.18,685.23,0.25380988]
[1752588222525,0.97504419,686.22,685.23,0.25380988]
[1752588224531,0.97504419,686.26,685.23,0.25380988]
[1752588224726,0.97504419,686.27,685.23,0.25380988]
[1752588224936,0.97504419,686.3,685.23,0.25380988]
[1752588225133,0.42288124,686.33,685.23,0.25380988]
[1752588225336,0.97504419,686.4,685.23,0.25380988]
[1752588225337,0.42288124,686.39,685.23,0.25380988]
[1752588225533,0.97504419,686.4,685.23,0.25380988]
[1752588225938,0.97504419,686.43,685.26,0.96989225]
[1752588226632,0.97504419,686.47,685.28,0.96989225]
[1752588226835,0.97504419,686.46,685.29,0.96989225]
[1752588227337,0.4227497,686.55,685.38,0.96989225]
[1752588227534,0.4227497,686.64,685.38,0.96989225]
[1752588228137,0.97504419,686.65,685.39,0.96989225]
[1752588228338,0.97504419,686.67,685.4,0.96989225]
[1752588228938,0.97504419,686.67,685.41,0.96989225]
[1752588229137,0.97504419,686.66,685.42,0.96989225]
[1752588229638,0.4227497,686.75,685.23,0.25380988]
[1752588229839,0.97473279,686.66,685.42,0.96793834]
[1752588230335,0.97473279,686.65,685.43,0.96793834]
[1752588230934,0.97473279,686.63,685.41,0.96793834]
[1752588231138,0.97473279,686.62,685.42,0.96793834]
[1752588231439,0.97473279,686.6,685.43,0.96793834]
[1752588231738,0.97473279,686.51,685.45,0.96793834]
[1752588232035,0.25351405,686.83,685.48,0.96793834]
[1752588232036,0.97473279,686.47,685.48,0.96793834]
[1752588232234,0.97473279,686.47,685.49,0.96793834]
[1752588232738,0.97473279,686.47,685.23,0.25380988]
[1752588232739,0.97473279,686.39,685.41,0.96793834]
[1752588233237,0.97473279,686.39,685.23,0.25380988]
[1752588233238,0.97473279,686.43,685.38,0.96793834]
[1752588233437,1.9599158,686.75,685.23,0.25380988]
[1752588233438,0.97473279,686.46,685.37,0.96793834]
[1752588234034,0.97473279,686.45,685.36,0.96793834]
[1752588234334,0.97473279,686.43,685.36,0.96793834]
[1752588235040,0.97473279,686.44,685.35,0.96793834]
[1752588235237,0.97473279,686.46,685.35,0.96793834]
[1752588236136,0.25351405,686.83,685.23,0.25380988]
[1752588236137,0.97473279,686.45,685.36,0.96793834]
[1752588237143,0.97473279,686.44,685.38,0.96793834]
[1752588238238,0.97473279,686.43,685.4,0.96793834]
[1752588239243,0.97473279,686.42,685.42,0.96793834]
[1752588239639,0.97473279,686.42,685.41,0.96793834]
[1752588241241,0.97473279,686.43,685.41,0.96793834]
[1752588241438,0.97473279,686.36,685.4,0.96793834]
[1752588241644,0.97473279,686.31,685.37,0.96793834]
[1752588241844,0.97473279,686.33,685.36,0.96793834]
[1752588242144,0.97473279,686.33,685.23,0.25380988]
[1752588242145,0.97473279,686.32,685.35,0.96793834]
[1752588242341,0.97473279,686.28,685.34,0.96793834]
[1752588243142,0.97473279,686.28,685.35,0.96793834]
[1752588243342,0.97473279,686.27,685.35,0.96793834]
[1752588243645,0.97473279,686.28,685.37,0.96793834]
[1752588244040,1.39936769,686.34,685.42,0.96793834]
[1752588244342,0.4246349,686.33,685.43,0.96793834]
[1752588244547,0.97473279,686.34,685.43,0.96793834]
[1752588245041,0.97473279,686.33,685.44,0.96793834]
[1752588245241,0.97473279,686.32,685.45,0.96793834]
[1752588245442,0.97473279,686.3,685.46,0.96793834]
[1752588246146,0.97473279,686.3,685.47,0.96793834]
[1752588248244,0.97473279,686.31,685.47,0.96793834]
[1752588248445,0.97473279,686.31,685.48,0.96793834]
[1752588249647,0.97473279,686.32,685.5,0.96793834]
[1752588249848,0.97473279,686.33,685.49,0.96793834]
[1752588252149,0.97473279,686.34,685.48,0.96793834]
[1752588252349,0.97473279,686.37,685.46,0.96793834]
[1752588252545,0.25351405,686.83,685.47,0.96793834]
[1752588252546,0.97473279,686.36,685.47,0.96793834]
[1752588253449,0.97473279,686.29,685.4,0.96793834]
[1752588253746,0.97473279,686.29,685.39,0.96793834]
[1752588254249,0.97473279,686.29,685.4,0.96793834]
[1752588255047,0.97473279,686.3,685.39,0.96793834]
[1752588256648,0.97473279,686.3,685.4,0.96793834]
[1752588256850,0.97473279,686.3,685.39,0.96793834]
[1752588257050,0.97473279,686.31,685.39,0.96793834]
[1752588258355,0.97473279,686.3,685.4,0.96793834]
[1752588259854,0.97473279,686.28,685.42,0.96793834]
[1752588260250,0.97473279,686.27,685.42,0.96793834]
[1752588260749,0.97473279,686.27,685.41,0.96793834]
[1752588261958,0.97473279,686.24,685.44,0.96793834]
[1752588264459,0.97473279,686.22,685.45,0.96793834]
[1752588265356,0.97473279,686.26,685.42,0.96793834]
[1752588265556,0.97473279,686.26,685.43,0.96793834]
[1752588266458,0.97473279,686.26,685.42,0.96793834]
[1752588267064,0.42489359,686.28,685.39,0.96793834]
[1752588267259,0.42489359,686.3,685.39,0.96793834]
[1752588268361,0.42489359,686.3,685.38,0.96793834]
[1752588268562,0.42489359,686.31,685.38,0.96793834]
[1752588268764,0.97473279,686.32,685.38,0.96793834]
[1752588268962,0.97473279,686.3,685.39,0.96793834]
[1752588269560,0.97473279,686.24,685.44,0.96793834]
[1752588269764,0.97473279,686.23,685.44,0.96793834]
[1752588269960,0.97473279,686.25,685.43,0.96793834]
[1752588270361,0.97473279,686.29,685.46,0.96793834]
[1752588271162,0.97473279,686.28,685.46,0.96793834]
[1752588272061,0.42486588,686.28,685.46,0.96793834]
[1752588272362,1.39959867,686.28,685.47,0.96793834]
[1752588272565,0.97473279,686.29,685.47,0.96793834]
[1752588272765,0.97473279,686.28,685.47,0.96793834]
[1752588272966,0.97473279,686.28,685.46,0.96793834]
[1752588273266,0.97473279,686.25,685.44,0.96793834]
[1752588273566,0.97473279,686.2,685.38,0.96793834]
[1752588273762,0.97473279,686.2,685.39,0.96793834]
[1752588273962,0.97473279,686.22,685.41,0.96793834]
[1752588274866,0.97473279,686.24,685.4,0.96793834]
[1752588275361,0.97473279,686.23,685.4,0.96793834]
[1752588277063,1.39967908,686.24,685.4,0.96793834]
[1752588277262,0.25351405,686.83,685.42,0.96793834]
[1752588277263,0.97473279,686.21,685.42,0.96793834]
[1752588278368,0.97473279,686.21,685.43,0.96793834]
[1752588279468,0.97473279,686.2,685.44,0.96793834]
[1752588279667,0.97473279,686.2,685.43,0.96793834]
[1752588279968,0.97473279,686.23,685.46,0.96793834]
[1752588280164,0.97473279,686.22,685.47,0.96793834]
[1752588281267,0.97473279,686.21,685.48,0.96793834]
[1752588282370,0.97473279,686.2,685.49,0.96793834]
[1752588283270,0.97473279,686.2,685.5,0.96793834]
[1752588283468,0.97473279,686.19,685.49,0.96793834]
[1752588283672,0.97473279,686.17,685.51,0.96793834]
[1752588283872,0.97473279,686.14,685.49,0.96793834]
[1752588284369,0.97473279,686.1,685.46,0.96793834]
[1752588285067,0.97473279,686.12,685.45,0.96793834]
[1752588287574,0.42581016,686.12,685.48,0.96793834]
[1752588287772,0.42581016,686.14,685.48,0.96793834]
[1752588288170,0.97473279,686.15,685.48,0.96793834]
[1752588288375,0.97473279,686.13,685.5,0.96793834]
[1752588288771,0.97473279,686.14,685.49,0.96793834]
[1752588289375,0.97473279,686.14,685.5,0.96793834]
[1752588289976,0.97473279,686.16,685.48,0.96793834]
[1752588290174,0.97473279,686.15,685.49,0.96793834]
[1752588291273,0.97473279,686.14,685.5,0.96793834]
[1752588291676,1.40054295,686.14,685.5,0.96793834]
[1752588291873,0.42581016,686.13,685.5,0.96793834]
[1752588292076,0.97473279,686.14,685.5,0.96793834]
[1752588292278,0.97473279,686.13,685.51,0.96793834]
[1752588294474,0.97473279,686.1,685.5,0.96793834]
[1752588294677,0.97473279,686.1,685.37,0.25368499]
[1752588294678,0.97473279,686.09,685.49,0.96793834]
[1752588294877,0.97473279,686.11,685.48,0.96793834]
[1752588295178,0.97473279,686.11,684.52,3.2540736]
[1752588295179,0.42599329,686.16,685.36,0.96793834]
[1752588295378,0.97473279,685.78,685.08,0.96793834]
[1752588295577,0.97473279,685.77,685.07,0.96793834]
[1752588295778,0.97473279,685.77,685.08,0.96793834]
[1752588296073,0.97473279,685.75,685.09,0.96793834]
[1752588296278,0.97473279,685.76,685.03,0.25380155]
[1752588297079,0.97473279,685.8,685.03,0.25380155]
[1752588297581,0.25351405,686.83,685.03,0.25380155]
[1752588297582,0.97473279,685.79,685.03,0.25380155]
[1752588297982,0.97473279,685.8,685.03,0.25380155]
[1752588298282,0.97473279,685.83,685.03,0.25380155]
[1752588298482,0.97473279,685.8,685.03,0.25380155]
[1752588298681,0.97473279,685.78,684.92,0.96793834]
[1752588298885,0.97473279,685.77,684.93,0.96793834]
[1752588299185,2.49098396,685.77,684.98,0.25389321]
[1752588299386,1.51625117,685.76,684.98,0.25389321]
[1752588299581,1.51625117,685.75,684.98,0.25389321]
[1752588299782,1.51625117,685.74,684.92,0.96793834]
[1752588299986,1.51625117,685.73,684.95,0.25390062]
[1752588300182,1.51625117,685.72,684.95,0.25390062]
[1752588300488,1.51625117,685.71,684.95,0.25390062]
[1752588300786,1.51625117,685.7,684.95,0.25390062]
[1752588300982,0.42599329,685.69,684.95,0.25390062]
[1752588301282,1.51359284,685.77,684.95,0.25390062]
[1752588301482,1.51359284,685.76,684.95,0.25390062]
[1752588301681,1.51363168,685.75,684.95,0.25390062]
[1752588301882,1.51363168,685.74,684.95,0.25390062]
[1752588302187,0.97473279,685.7,684.95,0.25390062]
[1752588302584,2.48836447,685.71,684.95,0.25390062]
[1752588302789,1.51363168,685.7,684.95,0.25390062]
[1752588302987,1.51363168,685.69,684.95,0.25390062]
[1752588303189,1.51363168,685.68,684.95,0.25390062]
[1752588303490,1.51286717,685.67,684.95,0.25390062]
[1752588303690,1.08805373,685.66,684.95,0.25390062]
[1752588303892,1.08805373,685.65,684.95,0.25390062]
[1752588304092,1.08805373,685.64,684.95,0.25390062]
[1752588304287,1.08805373,685.63,684.95,0.25390062]
[1752588304489,1.08805373,685.62,684.95,0.25390062]
[1752588304793,1.08805373,685.61,684.95,0.25390062]
[1752588304993,1.08805373,685.6,684.95,0.25390062]
[1752588305294,1.08805373,685.59,684.95,0.25390062]
[1752588305488,1.08805373,685.58,684.95,0.25390062]
[1752588305689,1.08805373,685.57,684.95,0.25390062]
[1752588305889,1.08805373,685.56,684.95,0.25390062]
[1752588306093,0.97473279,685.79,684.95,0.25390062]
[1752588306294,2.06161809,685.78,684.95,0.25390062]
[1752588306494,1.51045905,685.77,684.95,0.25390062]